[Event "10th Cesme Open-A 2024"]
[Site "Cesme"]
[Date "2024.06.25"]
[Round "3"]
[White "Bernadskiy, Vitaliy"]
[Black "Eke, Salih"]
[Result "1/2-1/2"]
[ECO "D35"]
[WhiteElo "2563"]
[BlackElo "2251"]
[Annotator "TA"]
[PlyCount "118"]
[EventDate "2024.06.23"]
[EventType "swiss"]
[EventCountry "TUR"]
[SourceTitle "playchess.com"]
[Source "ChessBase"]
[SourceQuality "1"]
[TimeControl "5400+30"]

{[%evp 18,118,35,21,37,29,27,26,18,0,14,0,0,0,0,-16,-9,-17,0,0,0,0,0,0,0,0,-2,-27,-20,-19,-23,-27,-22,-23,-23,-44,-38,-60,-34,-33,0,-87,-48,-32,-19,-31,-17,-101,-94,-92,-62,-100,-54,-60,0,0,0,0,0,0,8,8,8,8,8,8,8,8,8,8,8,8,8,0,8,8,8,8,8,8,8,8,8,0,0,0,0,0,0,0,0,0,0,0,0,0,0,0,0,0,0,0,0]} 1. d4 {[%emt 0:01:00]} d5 {[%emt 0:02:00]} 2. c4 {[%emt 0:00:00]} e6 {[%emt 0:01:30]} 3. Nc3 {[%emt 0:00:00]} Be7 {[%emt 0:01:30]} 4. cxd5 {[%emt 0:00:00]} exd5 {[%emt 0:00:30]} 5. Bf4 {[%emt 0:00:00]} Nf6 {[%emt 0:00:30]} 6. e3 {[%emt 0:00:30]} O-O {[%emt 0:01:30]} 7. Nf3 {[%emt 0:00:30]} c6 {[%emt 0:06:30]} 8. h3 {[%emt 0:01:30]} Nbd7 {[%emt 0:03:30][%cal Bb8d7,Bd7f8,Bf8e6][%mdl 32]} 9. Bd3 {[%emt 0:02:30]} Re8 {[%emt 0:01:30]} 10. O-O {[%emt 0:05:30]} Nf8 {[%emt 0:00:30]} 11. Bh2 {[%emt 0:01:30]} Ne6 {[%emt 0:01:30]} 12. Ne5 {[%emt 0:00:30]} g6 {[%emt 0:03:30] White has an edge.} 13. a3 {[%emt 0:00:30]} Ng7 {[%emt 0:04:30]} 14. b4 {[%emt 0:00:30]} a6 {[%emt 0:01:30]} 15. g4 {[%emt 0:07:30]} Nd7 {[%emt 0:12:30]} 16. Kh1 {[%emt 0:12:30]} Nxe5 {[%emt 0:01:30]} 17. dxe5 {[%emt 0:00:30]} f6 {[%emt 0:05:30]} 18. e4 {[%emt 0:01:30]} fxe5 {[%emt 0:01:30]} 19. exd5 {[%emt 0:05:30]} cxd5 {[%emt 0:00:30]} 20. Bxe5 {[%emt 0:00:30]} Be6 $1 {[%emt 0:01:30]} 21. f4 {[%emt 0:01:30]} Bf6 {[%emt 0:02:30]} 22. Re1 {[%emt 0:03:30]} d4 {[%emt 0:05:30]} 23. Bxf6 {[%emt 0:05:30]} Qxf6 {[%emt 0:00:30]} 24. Ne4 {[%emt 0:00:30]} Qxf4 {[%emt 0:00:30] [#] Strongly threatening ...Bd5.} 25. Rf1 {[%emt 0:00:30]} Qe5 {[%emt 0:00:30]} 26. Nf6+ {[%emt 0:00:30]} Kh8 {[%emt 0:00:00]} 27. Qf3 {[%emt 0:00:00][%cal Oa1e1] Rae1! would now be deadly.} Rf8 {[%emt 0:06:00][%cal Of8f6] And now ...Rxf6! would win.} (27... Nf5 $5 28. gxf5 gxf5 29. Bxf5 (29. Nxe8 $2 Bd5 $19) 29... Qxf6 30. Bxe6 Qxe6 $17) 28. Rae1 $1 {[%emt 0:00:00]} (28. Qxb7 Rad8 29. Qe4 Qg5 $17) 28... Qg5 {[%emt 0:02:30]} (28... Qxf6 $2 29. Qxf6 Rxf6 30. Rxf6 $18) (28... Qd6 {feels hotter.} 29. Qxb7 Qg3 30. Qf3 Qxf3+ 31. Rxf3 Bd5) 29. Qf4 {[%emt 0:02:30]} (29. Qxb7 $11 Rab8 30. Qc7 (30. Qxa6 $2 Rxf6 31. Kg1 Rxf1+ 32. Bxf1 Rd8 $19)) 29... Qxf4 {[%emt 0:04:30]} ({Don't go for} 29... Qxf6 $2 30. Qxf6 Rxf6 31. Rxf6 $18) (29... Bd5+ {with more complications.} 30. Kg1 Qxf4 31. Rxf4 Ne6) 30. Rxf4 {[%emt 0:00:00][%cal Og4g5]} g5 {[%emt 0:00:30]} 31. Rff1 {[%emt 0:01:00]} h6 {[%emt 0:00:30]} 32. Nh7 {[%emt 0:02:30]} (32. Kg1 $11) 32... Rxf1+ $17 {[%emt 0:04:30]} 33. Rxf1 {[%emt 0:00:30]} Bd5+ {[%emt 0:00:30]} 34. Kh2 {[%emt 0:00:30]} Ne6 {[%emt 0:00:30]} (34... Rd8 $17 35. Nf6 (35. Rf6 $2 Ne6 $19) 35... Bc6) 35. Nf6 $15 {[%emt 0:02:30]} Bc6 {[%emt 0:00:30]} (35... Bb3 $15 36. Rb1 Ba4) 36. Re1 $1 $11 {[%emt 0:02:30] The position is equal.} Ng7 {[%emt 0:01:30] ...Rf8 is the strong threat.} ({And not} 36... Nf4 37. Re7) 37. Re7 {[%emt 0:00:30]} Rf8 {[%emt 0:01:30] Prevents Rf7.} 38. Nd7 {[%emt 0:00:30]} Re8 {[%emt 0:14:07] [#]} 39. Ne5 $1 {[%emt 0:00:00]} Rxe7 {[%emt 0:00:08]} 40. Ng6+ {[%emt 0:00:00]} Kg8 {[%emt 0:00:30]} 41. Nxe7+ {[%emt 0:00:00]} Kf7 {[%emt 0:00:42]} 42. Nxc6 {[%emt 0:00:00]} bxc6 {[%emt 0:00:30]} 43. Bxa6 {[%emt 0:00:00][%mdl 4096] Endgame. KB-KN} Ke6 {[%emt 0:00:07]} 44. a4 {[%emt 0:00:00]} Kd6 {[%emt 0:03:35]} 45. Kg3 {[%emt 0:00:30]} c5 {[%emt 0:01:01]} 46. bxc5+ {[%emt 0:00:30]} Kxc5 {[%emt 0:00:30]} 47. Kf3 {[%emt 0:00:00]} Ne6 {[%emt 0:02:27]} 48. Ke4 {[%emt 0:01:00]} Kb4 {[%emt 0:00:33] Hoping for ...Nc5+.} 49. Bb5 {[%emt 0:01:30]} Nf4 {[%emt 0:01:11]} 50. h4 {[%emt 0:02:30] Black must now prevent h5.} (50. Kxd4 {simplifies} Nxh3 51. Ke5 Nf2 52. Kf5) 50... d3 {[%emt 0:00:38]} 51. Bxd3 {[%emt 0:00:30]} Nxd3 {[%emt 0:00:00]} 52. Kxd3 {[%emt 0:01:30]} gxh4 {[%emt 0:00:31][%cal Oh4h3] ( -> ...h3!)} 53. Ke4 {[%emt 0:00:30] Kf3 would kill now.} Kxa4 {[%emt 0:00:01] KPP-KP} 54. Kf3 {[%emt 0:00:00]} Kb4 {[%emt 0:00:31]} 55. Kg2 {[%emt 0:00:00]} Kc4 {[%emt 0:00:30]} 56. Kh3 {[%emt 0:00:30]} Kd4 {[%emt 0:00:30]} 57. Kxh4 {[%emt 0:00:30]} Ke4 {[%emt 0:00:30]} 58. Kh5 {[%emt 0:00:30]} Kf4 {[%emt 0:00:30]} 59. Kxh6 {[%emt 0:00:30] Intending g5 and mate.} Kxg4 {[%emt 0:00:00] Weighted Error Value: White=0.11 (very precise) /Black=0.09 (flawless) .  Mistake:       	White=2     	Black=2      Inaccurate:     	White=1     	Black=4      OK:         	White=23    	Black=22     Best:        	White=3     	Black=4      Strong:       	White=2     	Black=1} 1/2-1/2

[Event "10th Cesme Open-A 2024"]
[Site "Cesme"]
[Date "2024.06.25"]
[Round "3"]
[White "Rasulov, Vugar"]
[Black "Kavri, Yusuf Eren"]
[Result "1-0"]
[ECO "E05"]
[WhiteElo "2557"]
[BlackElo "2059"]
[Annotator "TA"]
[PlyCount "130"]
[EventDate "2024.06.23"]
[EventType "swiss"]
[EventCountry "TUR"]
[SourceTitle "playchess.com"]
[Source "ChessBase"]
[SourceQuality "1"]
[TimeControl "5400+30"]

{[%evp 18,130,20,22,-1,13,3,-36,-19,-76,-35,-60,-34,-39,-37,-55,-30,-50,0,0,18,12,26,18,10,0,-4,-32,-10,-25,-3,-9,-23,-26,0,-35,-34,-37,-44,-47,-16,-64,0,0,0,0,0,-13,75,102,72,110,145,145,151,126,129,132,130,10,31,10,54,47,39,51,38,0,88,27,32,0,2,8,8,8,8,8,8,10,8,3,4,0,0,0,8,0,0,0,5,0,0,0,0,0,0,0,20,0,0,0,0,0,8,14,17,17,25,25,25,27,93,0,25]} 1. Nf3 {[%emt 0:01:00]} Nf6 {[%emt 0:01:00]} 2. c4 {[%emt 0:00:30]} e6 {[%emt 0:00:30]} 3. g3 {[%emt 0:00:30]} d5 {[%emt 0:00:00]} 4. Bg2 {[%emt 0:00:30]} Be7 {[%emt 0:00:00]} 5. O-O {[%emt 0:00:30]} O-O {[%emt 0:00:30]} 6. d4 {[%emt 0:00:30]} dxc4 {[%emt 0:00:00]} 7. Qc2 {[%emt 0:00:30]} a6 {[%emt 0:00:00]} 8. a4 {[%emt 0:00:30]} Bd7 {[%emt 0:00:30]} 9. Rd1 {[%emt 0:00:30]} Bc6 {[%emt 0:01:30]} 10. Nc3 {[%emt 0:00:30]} Bxf3 {[%emt 0:00:00]} 11. Bxf3 {[%emt 0:00:30]} Nc6 {[%emt 0:00:00]} 12. e3 {[%emt 0:01:30]} Na5 {[%emt 0:10:30] Black is slightly better.} 13. Rb1 {[%emt 0:00:30]} (13. Ne4 $11) 13... Rb8 {[%emt 0:02:30][%cal Ba8b8,Bb8b7,Bb7d7][%mdl 32]} 14. e4 {[%emt 0:02:30]} b5 {[%emt 0:03:30]} 15. axb5 {[%emt 0:01:30]} axb5 {[%emt 0:00:00]} 16. Bf4 {[%emt 0:03:30]} Nc6 {[%emt 0:12:00]} 17. Qd2 {[%emt 0:02:30]} Nb4 {[%emt 0:01:30]} ({Black should try} 17... b4 $15 18. Ne2 Na5) 18. Be2 $11 {[%emt 0:03:30]} Rb7 {[%emt 0:11:30]} 19. b3 {[%emt 0:01:30]} cxb3 {[%emt 0:01:30]} 20. Rxb3 {[%emt 0:00:30][%cal Od2b2]} c6 {[%emt 0:00:30]} 21. Rdb1 {[%emt 0:04:30]} Na6 {[%emt 0:04:30]} 22. Bf3 {[%emt 0:00:30]} Rd7 {[%emt 0:03:30]} 23. Qa2 {[%emt 0:01:30]} Nc7 {[%emt 0:02:30]} 24. Be3 {[%emt 0:01:30]} b4 {[%emt 0:11:30]} 25. Ne2 {[%emt 0:00:30]} Qa8 {[%emt 0:00:00]} 26. Qc2 {[%emt 0:02:30]} Nb5 {[%emt 0:01:00]} 27. Rc1 {[%emt 0:00:30]} Rc8 {[%emt 0:00:30]} 28. Kg2 {[%emt 0:00:30]} Rdd8 {[%emt 0:01:30]} 29. h4 {[%emt 0:01:30]} (29. Qb2 $1 $11 {might be stronger.}) 29... Qa6 {[%emt 0:04:30]} (29... Nd7 $15 30. Rd3 h6) 30. Qb2 $1 {[%emt 0:01:30]} Nd7 {[%emt 0:02:30][%cal Bf6d7,Bd7c5,Bc5e6][%mdl 32]} 31. Ra1 {[%emt 0:02:30]} Qb7 {[%emt 0:00:30][%cal Oe6e5]} 32. Bg5 {[%emt 0:03:30]} (32. Bd2 $5) 32... Bxg5 {[%emt 0:13:07]} (32... f6 $1 $11 33. Bd2 c5 34. dxc5 Nxc5 35. Rxb4 Qd7 36. Rxb5 Qxd2) 33. hxg5 $16 {[%emt 0:00:00]} e5 {[%emt 0:01:03]} 34. Rxb4 {[%emt 0:01:00]} exd4 {[%emt 0:01:27]} 35. Nxd4 {[%emt 0:00:30]} Nc5 {[%emt 0:01:04] Hoping for ...Nd3.} 36. Nf5 {[%emt 0:00:30][%csl Gf5][%cal Rb2g7]} Ne6 {[%emt 0:00:49][%cal Oc8c7]} 37. Be2 {[%emt 0:02:30]} c5 {[%emt 0:01:49] [#]} 38. Rc4 {[%emt 0:02:30] White is much more active.} (38. Rxb5 $2 {too greedy.} Qxe4+ 39. Bf3 Qxf5 $17) ({White must play} 38. Rba4 $1 $16 c4 39. f3 (39. Bxc4 $2 {loses.} Qxe4+ 40. Kg1 Rxc4 $19)) 38... Rb8 {[%emt 0:04:59][%cal Ob7c7,Bc8b8,Bb8b7,Bb7b2][%mdl 32]} (38... Qd7 {simplifies} 39. Bg4 Nbd4 40. Rb1 Rc6) 39. Bg4 {[%emt 0:09:30]} Nbd4 {[%emt 0:01:52] Excellent horsemanship.} 40. Qxb7 {[%emt 0:00:30]} Rxb7 {[%emt 0:00:00]} 41. Nxd4 {[%emt 0:01:30]} cxd4 {[%emt 0:00:10]} 42. f4 {[%emt 0:00:00]} g6 {[%emt 0:01:09] [#]} (42... Rb2+ $11 {remains equal.} 43. Kf3 d3) 43. Rd1 {[%emt 0:01:00]} (43. Ra2 $1 $16) 43... Rb2+ $11 {[%emt 0:00:51]} 44. Kh3 {[%emt 0:02:30]} d3 {[%emt 0:00:29]} 45. Rc3 {[%emt 0:01:30][%cal Og4e6] Threatening Bxe6!} d2 {[%emt 0:00:18]} 46. Kg2 {[%emt 0:00:30]} Nd4 {[%emt 0:00:35]} 47. Rd3 {[%emt 0:00:30]} Nc6 {[%emt 0:01:11]} 48. Rxd8+ {[%emt 0:03:30]} Nxd8 {[%emt 0:00:30][%mdl 4096] Endgame. KRB-KRN} 49. Kf2 {[%emt 0:00:30]} Nb7 $1 {[%emt 0:00:30]} 50. Ke2 {[%emt 0:00:30]} Nc5 {[%emt 0:00:30]} 51. Bf3 {[%emt 0:00:30]} (51. Rxd2 {simplifies} Rxd2+ 52. Kxd2 Nxe4+ 53. Ke3) 51... Ne6 {[%emt 0:00:30]} 52. Ke3 {[%emt 0:00:30]} Rb3+ {[%emt 0:00:30]} 53. Kf2 {[%emt 0:04:30]} Rb2 {[%emt 0:02:08]} 54. e5 {[%emt 0:00:30]} Nd4 {[%emt 0:00:51]} 55. Ba8 {[%emt 0:02:30]} Nb5 {[%emt 0:01:05] White must now prevent ...Nc3.} 56. Ke3 {[%emt 0:00:30]} Rb3+ $1 {[%emt 0:00:23]} 57. Kxd2 {[%emt 0:00:30]} Rxg3 {[%emt 0:00:07]} 58. Rb1 {[%emt 0:01:30]} Nc7 {[%emt 0:00:38]} 59. Bc6 {[%emt 0:00:00]} Ne6 {[%emt 0:01:06]} 60. Rb4 {[%emt 0:00:00]} Rg4 {[%emt 0:00:42]} 61. Ke3 {[%emt 0:00:30]} Rg3+ {[%emt 0:00:00]} 62. Bf3 {[%emt 0:00:30] And now Kf2 would win.} Rg1 {[%emt 0:00:15]} 63. Bd5 {[%emt 0:00:00]} Re1+ {[%emt 0:01:07]} 64. Kf2 {[%emt 0:00:00]} Ra1 {[%emt 0:00:00]} 65. Ke3 {[%emt 0:01:30]} (65. Rb8+ $16 Kg7 66. Bxe6 fxe6 67. Rb7+ Kg8 68. Rb4) 65... Ra7 {[%emt 0:00:29][%mdl 32768] Weighted Error Value: White=0.16 (very precise) /Black=0.13 (very precise) .  Mistake:       	White=5     	Black=4      Inaccurate:     	White=5     	Black=6      OK:         	White=21    	Black=18     Best:        	White=4     	Black=4      Strong:       	White=1     	Black=2     . Loss on time!?} 1-0

[Event "10th Cesme Open-A 2024"]
[Site "Cesme"]
[Date "2024.06.25"]
[Round "3"]
[White "Grover, Sahaj"]
[Black "Kirilmaz, Emre"]
[Result "1-0"]
[ECO "D02"]
[WhiteElo "2510"]
[BlackElo "2195"]
[Annotator "TA"]
[PlyCount "55"]
[EventDate "2024.06.23"]
[EventType "swiss"]
[EventCountry "TUR"]
[SourceTitle "playchess.com"]
[Source "ChessBase"]
[SourceQuality "1"]
[TimeControl "5400+30"]

{[%evp 9,55,-4,12,12,6,0,8,23,20,18,12,27,25,14,4,9,6,0,0,-22,-22,-31,-43,-36,-35,-29,-29,-49,-50,-59,-46,-68,410,410,401,343,425,426,415,415,476,466,823,810,818,755,727,743]} 1. d4 {[%emt 0:17:00]} Nf6 {[%emt 0:02:00]} 2. Bf4 {[%emt 0:00:00]} d5 {[%emt 0:02:30]} 3. e3 {[%emt 0:00:00]} c5 {[%emt 0:00:30]} 4. Nf3 {[%emt 0:00:30]} Nc6 {[%emt 0:01:30]} 5. Nbd2 {[%emt 0:00:00]} cxd4 {[%emt 0:04:30]} 6. exd4 {[%emt 0:00:00]} Bf5 {[%emt 0:00:30]} 7. Bb5 {[%emt 0:00:30]} Qb6 {[%emt 0:00:00]} (7... e6 $5) 8. c4 {[%emt 0:00:30] The position is equal.} dxc4 {[%emt 0:07:00]} 9. a4 {[%emt 0:00:30]} e6 {[%emt 0:17:30]} 10. Nxc4 {[%emt 0:19:30]} Bb4+ {[%emt 0:01:30]} 11. Bd2 $1 {[%emt 0:00:30]} Bxd2+ {[%emt 0:00:30]} 12. Qxd2 {[%emt 0:00:00]} Qc7 {[%emt 0:00:30]} 13. Qa5 {[%emt 0:08:00]} (13. Qb4 {with more complications.} Rd8 14. Nfe5 Rxd4 15. Nxc6 bxc6 16. Qc5) 13... Rc8 {[%emt 0:18:30]} 14. Rc1 {[%emt 0:17:30]} O-O {[%emt 0:07:30]} 15. Qxc7 {[%emt 0:00:30]} Rxc7 {[%emt 0:00:00]} 16. Nd6 {[%emt 0:00:00]} Be4 {[%emt 0:05:00]} 17. Nxe4 {[%emt 0:11:00]} Nxe4 {[%emt 0:01:30]} 18. Ne5 {[%emt 0:00:30]} Rfc8 {[%emt 0:00:00]} 19. Bxc6 {[%emt 0:00:30][%cal Oe1g1]} f6 {[%emt 0:01:00]} 20. Rd1 {[%emt 0:01:30]} fxe5 $2 {[%emt 0:04:30][%mdl 8192] [#] Loses the game.} (20... bxc6 $15 {keeps the upper hand.} 21. Nc4 Rd8) 21. Bxe4 $18 {[%emt 0:01:30]} Rc4 {[%emt 0:00:00]} 22. a5 {[%emt 0:00:30][%cal Ba4a5,Ba5a6][%mdl 32]} exd4 {[%emt 0:01:00]} 23. Bxb7 {[%emt 0:00:30]} R8c5 {[%emt 0:00:00]} 24. a6 {[%emt 0:00:00]} Rc2 {[%emt 0:01:00]} 25. O-O {[%emt 0:00:00] White is clearly winning.} ({But not} 25. Rxd4 Re5+ 26. Kd1 Rxb2 $18) 25... e5 {[%emt 0:00:30]} (25... R2c4 $142 26. Be4 Ra5) 26. f4 {[%emt 0:00:30]} exf4 {[%emt 0:01:30]} 27. Rxf4 {[%emt 0:00:30]} Rxb2 {[%emt 0:00:00]} 28. Rfxd4 {[%emt 0:00:00] Weighted Error Value: White=0.07 (flawless) /Black=0.37.  Loses game:     	---       	Black=1      Mistake:       	---       	Black=1      OK:         	White=9     	Black=9      Best:        	White=1     	Black=2      Strong:       	White=1     	---} 1-0

[Event "10th Cesme Open-A 2024"]
[Site "Cesme"]
[Date "2024.06.25"]
[Round "3"]
[White "Isik, Alparslan"]
[Black "Ebrahimi Herab, Hamidreza"]
[Result "1/2-1/2"]
[ECO "A16"]
[WhiteElo "2469"]
[BlackElo "2333"]
[Annotator "TA"]
[PlyCount "73"]
[EventDate "2024.06.23"]
[EventType "swiss"]
[EventCountry "TUR"]
[SourceTitle "playchess.com"]
[Source "ChessBase"]
[SourceQuality "1"]
[TimeControl "5400+30"]

{[%evp 10,73,32,33,31,33,42,36,60,41,66,42,66,33,45,43,58,29,45,39,46,29,47,39,37,33,83,73,137,116,110,97,103,64,97,75,85,71,87,13,10,26,23,15,28,12,23,0,0,0,0,-8,0,0,0,0,0,-1,0,0,0,0,0,0,0,-16]} 1. c4 {[%emt 0:01:00]} Nf6 {[%emt 0:03:00]} 2. Nc3 {[%emt 0:00:00]} d5 {[%emt 0:00:30]} 3. cxd5 {[%emt 0:00:00]} Nxd5 {[%emt 0:00:30]} 4. g3 {[%emt 0:00:00]} g6 {[%emt 0:00:30]} 5. Bg2 {[%emt 0:01:00]} Nb6 {[%emt 0:00:30]} 6. h4 {[%emt 0:00:00]} h5 {[%emt 0:04:30]} 7. d3 {[%emt 0:01:00]} Bg7 {[%emt 0:00:30]} 8. Nf3 {[%emt 0:00:30]} N8d7 {[%emt 0:02:30][%cal Bb8d7,Bd7f6,Bf6g4][%mdl 32] White is slightly better.} 9. O-O {[%emt 0:00:30]} O-O {[%emt 0:01:30]} 10. Bg5 {[%emt 0:13:30]} a5 {[%emt 0:05:30]} 11. Qc1 {[%emt 0:06:30]} Nf6 {[%emt 0:08:30]} 12. Rd1 {[%emt 0:11:30]} c6 {[%emt 0:07:30]} 13. Bh6 {[%emt 0:03:30]} Bxh6 {[%emt 0:05:30]} 14. Qxh6 {[%emt 0:00:00]} Ng4 {[%emt 0:00:30]} 15. Qf4 {[%emt 0:05:00]} Qd6 {[%emt 0:05:30]} 16. Qc1 {[%emt 0:05:30]} Rd8 {[%emt 0:08:30]} 17. d4 {[%emt 0:05:30]} Be6 {[%emt 0:08:30]} (17... Qc7 $14) 18. Ng5 $16 {[%emt 0:03:30] [#] Threatens to win with Nce4.} Bc4 {[%emt 0:02:30]} (18... Bc8 $142) 19. b3 {[%emt 0:01:30]} Ba6 {[%emt 0:00:30]} 20. Nge4 {[%emt 0:00:30] Dodges Qf6} Qc7 {[%emt 0:01:30]} 21. Nc5 {[%emt 0:04:30]} e5 {[%emt 0:07:30]} 22. e3 {[%emt 0:06:30]} (22. Nxa6 {simplifies} Rxa6 23. d5 cxd5 24. Nxd5 Qxc1 25. Raxc1 Nxd5 26. Rxd5 Rxd5 27. Bxd5 Rd6 28. Bxb7 Rd2 29. f3) 22... exd4 {[%emt 0:04:30]} 23. exd4 {[%emt 0:00:00]} Nd7 {[%emt 0:02:34]} 24. Nxa6 {[%emt 0:01:00]} (24. N5e4 $16) 24... Rxa6 $11 {[%emt 0:00:07]} 25. d5 {[%emt 0:02:30]} Ndf6 {[%emt 0:02:34][%cal Og4f2] [#] White must now prevent ...Nxf2!} 26. dxc6 {[%emt 0:00:30]} bxc6 {[%emt 0:00:47]} 27. Qc2 {[%emt 0:05:30][%cal Oc3b5]} c5 {[%emt 0:02:40]} 28. Na4 {[%emt 0:01:30]} Rad6 {[%emt 0:00:38] The position is equal.} 29. Rxd6 {[%emt 0:00:30]} (29. Qxc5 $2 {is the wrong capture.} Rxd1+ 30. Rxd1 Rxd1+ $19) 29... Qxd6 {[%emt 0:00:02]} 30. Qxc5 {[%emt 0:05:16]} ({Much worse is} 30. Nxc5 Qd4 31. Rb1 Rc8 $17) 30... Qd2 {[%emt 0:00:14]} 31. Rf1 {[%emt 0:08:55]} Qxa2 {[%emt 0:01:01]} 32. Qxa5 {[%emt 0:00:05]} Rd2 {[%emt 0:00:30][%cal Rd2f2]} 33. Qa8+ {[%emt 0:01:36]} Kg7 {[%emt 0:00:30]} 34. Qf3 {[%emt 0:00:49]} Rc2 {[%emt 0:05:15]} 35. Bh3 {[%emt 0:01:58]} Ne5 {[%emt 0:00:37] A dynamic duo of knights.} 36. Qe3 {[%emt 0:00:27]} Re2 {[%emt 0:00:39]} 37. Nc3 {[%emt 0:04:46] Weighted Error Value: White=0.12 (very precise) /Black=0.10 (very precise) .  Mistake:       	White=1     	Black=2      Inaccurate:     	White=3     	Black=1      OK:         	White=13    	Black=13     Best:        	White=1     	Black=1} 1/2-1/2

[Event "10th Cesme Open-A 2024"]
[Site "Cesme"]
[Date "2024.06.25"]
[Round "3"]
[White "Fromm, Marius"]
[Black "Kamer, Kayra"]
[Result "1-0"]
[ECO "B42"]
[WhiteElo "2465"]
[BlackElo "2316"]
[Annotator "TA"]
[PlyCount "77"]
[EventDate "2024.06.23"]
[EventType "swiss"]
[EventCountry "TUR"]
[SourceTitle "playchess.com"]
[Source "ChessBase"]
[SourceQuality "1"]
[TimeControl "5400+30"]

{[%evp 11,77,42,56,37,49,34,58,7,61,62,58,26,31,35,38,31,19,0,10,3,32,35,35,34,34,20,18,18,85,77,92,95,87,60,107,77,95,63,71,76,173,162,235,225,231,226,649,277,272,270,279,271,285,279,332,327,323,323,426,417,708,704,706,690,785,780,816,812]} 1. e4 {[%emt 0:01:00]} c5 {[%emt 0:03:00]} 2. Nf3 {[%emt 0:00:30]} e6 {[%emt 0:00:30][%cal Be7e6,Be6e5][%mdl 32]} 3. d4 {[%emt 0:00:30]} cxd4 {[%emt 0:00:00]} 4. Nxd4 {[%emt 0:00:00]} a6 {[%emt 0:00:00]} 5. Bd3 {[%emt 0:00:00]} Nf6 {[%emt 0:00:30]} 6. O-O {[%emt 0:00:30]} e5 {[%emt 0:00:30]} 7. Nb3 {[%emt 0:08:30]} (7. Bg5 $5) 7... Nc6 {[%emt 0:00:30]} 8. c4 {[%emt 0:01:30]} a5 {[%emt 0:00:30]} 9. a4 {[%emt 0:05:30]} (9. Be3 $14) 9... h6 {[%emt 0:03:30]} (9... Be7 $11) 10. Nc3 $14 {[%emt 0:02:30]} d6 {[%emt 0:00:30]} 11. Be2 {[%emt 0:10:30]} Be7 {[%emt 0:00:30]} 12. Be3 {[%emt 0:00:30]} O-O {[%emt 0:00:30]} 13. Qd2 {[%emt 0:05:30]} Be6 {[%emt 0:02:30]} 14. f3 {[%emt 0:08:30]} Nb4 {[%emt 0:01:30]} 15. Nc1 {[%emt 0:07:30]} Rc8 {[%emt 0:04:30]} 16. b3 {[%emt 0:00:30]} Nd7 {[%emt 0:01:30]} 17. N1a2 {[%emt 0:02:30]} Nc5 {[%emt 0:01:30]} 18. Qd1 {[%emt 0:04:30]} Bg5 {[%emt 0:07:30]} 19. Bf2 {[%emt 0:00:30]} f5 {[%emt 0:01:30]} (19... Nxa2 $11 {keeps the balance.} 20. Rxa2 h5) 20. exf5 $16 {[%emt 0:01:30]} Nxa2 {[%emt 0:01:30]} 21. Rxa2 {[%emt 0:00:30]} Bxf5 {[%emt 0:00:30]} 22. Nb5 {[%emt 0:02:30]} Rf6 {[%emt 0:01:30]} (22... Rc6 $14 {feels stronger.}) 23. Kh1 {[%emt 0:01:30] [#] Strongly threatening h4.} h5 {[%emt 0:01:30]} 24. Nc3 {[%emt 0:07:30] Hoping for h4.} h4 {[%emt 0:14:30]} 25. Bxc5 {[%emt 0:02:30]} Rxc5 {[%emt 0:02:30]} (25... dxc5 $16 26. Nd5 Rd6) 26. Bd3 $18 {[%emt 0:00:30]} Bf4 {[%emt 0:04:30]} (26... Bxd3 $142 27. Qxd3 Rh6) 27. Bxf5 {[%emt 0:02:30]} Rxf5 {[%emt 0:00:30]} 28. Ne4 {[%emt 0:00:00][%csl LRc5,LRd6]} Be3 {[%emt 0:01:30]} (28... Rc7 29. Qd5+ (29. Nxd6 Rd7 $14) (29. Qxd6 Qxd6 30. Nxd6 Rf8 $16) 29... Kh8) 29. Nxc5 {[%emt 0:01:00]} (29. Qd3 $142) 29... Bxc5 {[%emt 0:00:30]} 30. Qd5+ {[%emt 0:00:00]} Rf7 {[%emt 0:00:00]} 31. Re2 {[%emt 0:01:00][%cal Ba2e2,Be2e4,Be4g4][%mdl 32] [#] Rxe5 is the strong threat.} Qf6 {[%emt 0:01:00]} 32. Re4 {[%emt 0:00:30]} g5 {[%emt 0:01:30]} 33. Rg4 {[%emt 0:03:30]} Kf8 {[%emt 0:00:30]} 34. Qd2 {[%emt 0:00:30][%csl LRa5,LRg5]} Rg7 {[%emt 0:00:30]} 35. Qxa5 {[%emt 0:00:30]} h3 {[%emt 0:00:00]} (35... b6 $142 36. Qd2 (36. Qa8+ Kf7 $18) 36... h3 37. gxh3 Rh7) 36. Qa8+ {[%emt 0:00:30] White is clearly winning.} Kf7 {[%emt 0:00:00][%cal Bf8f7,Bf7g8,Bg8h8][%mdl 32]} 37. Qxb7+ {[%emt 0:00:30]} Kg8 {[%emt 0:00:30]} 38. Qd5+ {[%emt 0:00:30]} Kh8 {[%emt 0:00:00]} 39. gxh3 {[%emt 0:00:30] Weighted Error Value: White=0.22 (precise) /Black=0.42.  Mistake:       	White=2     	Black=7      Inaccurate:     	White=3     	Black=2      OK:         	White=12    	Black=10     Best:        	White=2     	---} 1-0